Cogmind - Beta 13 @@@ ROGUE MODE // 2024.04.29 @ 16:54:08 Player: Barbarossa Result: Smashed by cave-in Performance ------------- Evolutions (0) 0 Regions Visited (0) 0 Robots Destroyed (3) 15 Value Destroyed (20) 20 Prototype IDs (0) 0 Alien Tech Used (0) 0 Bonus (0) 0 TOTAL SCORE: 35 Bonus ------- None Cogmind --------- Core Integrity 0/250 Matter 270/300 Energy 49/100 System Corruption 24% Temperature Cool (22) Movement Treading (160) Location -11/Scrapyard Parts ------- > --- POWER (1) -------- (None) > --- PROPULSION (2) --- Light Treads > --- UTILITY (2) ------ Small Storage Unit > --- WEAPON (2) ------- Small Laser > --- INVENTORY (8) ---- Aluminum Leg Compact Wheel Compact Wheel Compact Wheel Assault Rifle Peak State ------------ > --- POWER ------------ Ion Engine > --- PROPULSION ------- Aluminum Leg Aluminum Leg > --- UTILITY ---------- Small Storage Unit Seismic Detector > --- WEAPON ----------- Small Laser Assault Rifle > --- INVENTORY -------- Ion Engine Light Treads Light Treads Wheel Compact Wheel Compact Wheel Assault Rifle [Rating: 7] Favorites ----------- Power Ion Engine Engine Ion Engine Propulsion Aluminum Leg Treads Light Treads Leg Aluminum Leg Wheel Wheel Utility Small Storage Unit Device Seismic Detector Storage Small Storage Unit Weapon Small Laser Energy Gun Small Laser Ballistic Gun Assault Rifle Special Weapon Mining Laser Build | -11 ------- Run | Yrd Slots Evolved . | . Power . | . Propulsion . | . Utility . | . Weapon . | . Parts Attached 7 | 7 Power 1 | 1 Engine 1 | 1 Core . | . Reactor . | . Propulsion 4 | 4 Treads 3 | 3 Leg . | . Wheel 1 | 1 Hover . | . Flight . | . Utility 1 | 1 Device 1 | 1 Storage . | . Processor . | . Hackware . | . Protection . | . Artifact . | . Weapon 1 | 1 Energy Gun . | . Energy Cannon . | . Ballistic Gun . | . Ballistic Cannon . | . Launcher . | . Special Weapon 1 | 1 Impact Weapon . | . Slashing Weapon . | . Piercing Weapon . | . Special Melee Weapon . | . Unidentified Prototypes . | . Parts Lost 6 | 6 Power 2 | 2 Propulsion 2 | 2 Utility 1 | 1 Weapon 1 | 1 Highest Loss Streak 4 | 4 To Critical Strikes . | . Average Slot Usage (%) . | . Naked Turns . | . Heaviest Build 14 | 14 Greatest Support 40 | 40 Greatest Overweight (x) 1 | 1 Average Overweight (x) . | . Largest Inventory Capacity 8 | 8 Average Capacity 8 | 8 Most Carried 8 | 8 Average Carried 6 | 6 Final Capacity 8 | 8 Final Carried 5 | 5 Class Distribution -------------------- None Dominant Class ---------------- None Resources | -11 ----------- Run | Yrd Matter Collected 231 | 231 Remotely . | . Salvage Created 142 | 142 Parts 11 | 11 Haulers Intercepted . | . Recyclers Shooed . | . Parts Field Recycled . | . Retrieved Matter . | . Parts Self-Destructed . | . Prevented . | . Kills | -11 ------- Run | Yrd Combat Hostiles Destroyed . | . Classes Destroyed 2 | 2 Tunneler 2 | 2 Recycler 1 | 1 Best Kill Streak 1 | 1 Combat Bots Only . | . Max Kills in Single Turn 1 | 1 Gunslinging . | . Exploded . | . Melee . | . Uniques/NPCs Destroyed . | . Combat | -11 -------- Run | Yrd Hostile Shots Fired . | . Missed . | . Damage Taken 1094 | 1094 Core 256 | 256 Absorbed by Shields . | . Core Remaining (%) . | . Volleys Fired 64 | 64 Largest 2 | 2 Hottest 100 | 100 Shots Fired 71 | 71 Gun 14 | 14 Cannon . | . Launcher . | . Special 57 | 57 Kinetic 7 | 7 Thermal 64 | 64 Explosive . | . Electromagnetic . | . Robot Hit Streak 6 | 6 Robot Miss Streak 1 | 1 Penetration Max . | . Secondary Targets . | . Shots Hit Robots 10 | 10 Core Hits 4 | 4 Critical Kills . | . Critical Parts Destroyed . | . Critical Strikes . | . Melee Attacks . | . Impact . | . Slashing . | . Piercing . | . Sneak Attacks . | . Combat Hostiles . | . Follow-up Attacks . | . Damage Inflicted 121 | 121 Guns 121 | 121 Cannons . | . Explosions . | . Melee . | . Ramming . | . Kinetic 53 | 53 Thermal 68 | 68 Explosive . | . Electromagnetic . | . Impact . | . Slashing . | . Piercing . | . Highest Corruption 15 | 15 Average Corruption 11 | 11 Corruption Purged . | . Corruption Blocked . | . Effects 5 | 5 Message Errors 2 | 2 Heat Flow Errors 1 | 1 Energy Discharges 1 | 1 Data Loss (minor) 1 | 1 Overload Shots . | . Overflow Damage . | . Projectiles . | . Explosions . | . Melee . | . Knockbacks . | . Impact . | . Kinetic . | . Secondary . | . Self-Inflicted Damage . | . Shots . | . Rammed . | . Targets Rammed . | . Kicked . | . Crushed . | . Highest Temperature 210 | 210 Average Temperature 31 | 31 Received Heat Transfer . | . Siege Activations . | . Robots Corrupted . | . Combat Hostiles . | . Parts Fried . | . Impact Corruptions . | . Robots Melted . | . Combat Hostiles . | . Parts Melted . | . Heat Transferred 150 | 150 Parts Sabotaged . | . Parts Stolen . | . Parts Stripped . | . Power Chain Reactions . | . Alert | -11 ------- Run | Yrd Peak Influence 15 | 15 Initial . | . Average 1 | 1 Maximum Alert Level . | . Low Security (%) 100 | 100 Level 1 . | . Level 2 . | . Level 3 . | . Level 4 . | . Level 5 . | . High Security . | . Max Security . | . Squads Dispatched . | . Investigation . | . Extermination . | . Reinforcement . | . Assault . | . Garrison . | . Intercept . | . Searches Triggered . | . Construction Impeded . | . Haulers Reinforced . | . Active Scanning Responses . | . Cargo Convoy Interrupts . | . Stealth | -11 --------- Run | Yrd Distress Signals . | . Communications Jammed . | . Distress Signals . | . Times Spotted . | . Peak Tracking Total . | . Tactical Retreats . | . Traps | -11 ------- Run | Yrd Traps Triggered . | . Indirectly . | . Trap Hack Attempts . | . Triggered . | . Disarmed . | . Reprogrammed . | . Reused . | . Traps Extracted . | . Installed . | . Triggered . | . Machines | -11 ---------- Run | Yrd Machines Disabled . | . Max in Single Turn . | . Machines Repaired . | . Machines Dismantled . | . Machines Sabotaged . | . Overloaded Fab Kills . | . Hacking | -11 --------- Run | Yrd Machines Accessed . | . Terminals . | . Fabricators . | . Repair Stations . | . Recycling Units . | . Scanalyzers . | . Garrison Access . | . Total Hacks . | . Successful . | . Failed . | . Catastrophic . | . Database Lockouts . | . Manual . | . Terminals . | . Fabricators . | . Repair Stations . | . Recycling Units . | . Scanalyzers . | . Garrison Access . | . Terminal Hacks . | . Fabricator Hacks . | . Repair Station Hacks . | . Recycling Unit Hacks . | . Scanalyzer . | . Garrison Access Hacks . | . Unauthorized Hacks . | . Terminals . | . Fabricators . | . Repair Stations . | . Recycling Units . | . Scanalyzers . | . Garrison Access . | . Data Cores Recovered . | . Used . | . Hacking Detections . | . Full Trace Events . | . Feedback Events . | . Feedback Blocked . | . Robot Schematics Acquired . | . Robots Built . | . Authchips . | . Time . | . Total Robot Build Rating . | . Part Schematics Acquired . | . Parts Built . | . Authchips . | . Time . | . Total Part Build Rating . | . Parts Repaired . | . Time . | . Parts Recycled . | . Recycled Matter . | . Retrieved Matter . | . Retrieved Components . | . Parts Scanalyzed . | . Part Schematics Acquired . | . Parts Damaged . | . Bothacking | -11 ------------ Run | Yrd Used RIF Installer . | . Robots Hacked . | . Non-combat . | . Combat . | . Robot Hacks Applied . | . Relay Couplers Released . | . Fabnet Peak Effective % . | . Robots Rewired . | . Allies Hacked . | . Hacks Repelled . | . Allies | -11 -------- Run | Yrd Total Allies . | . Largest Group . | . Highest-Rated Group . | . Highest-Rated Ally . | . Total Orders . | . Ally Attacks . | . Total Damage . | . Kills . | . Allies Corrupted . | . Allies Melted . | . Intel | -11 ------- Run | Yrd Robot Analysis Total . | . Derelict Logs Recovered . | . Drone Launches . | . Drone Recoveries . | . Exploration | -11 ------------- Run | Yrd Turns Passed 706 | 706 Spaces Moved 156 | 156 Core . | . Treads 12 | 12 Legs 144 | 144 Wheels . | . Hover . | . Flight . | . Fastest Speed 120 | 120 Average Speed 123 | 123 Slowest Speed 190 | 190 Overloaded Moves . | . Propulsion Burnouts . | . Robots Hopped . | . Cave-ins Triggered 5 | 5 Exploration Rate (%) 8 | 8 Regions Visited . Branch Regions . Pre-discovered Areas . | . Known Exits Taken . | . Unknown Exits Taken . | . Scrap Searched . | . Spaces Dug 34 | 34 Terrain Destroyed 36 | 36 Melee . | . Projectile 36 | 36 AOE . | . Terrain Rammed . | . Walls Destroyed . | . Machines Disabled . | . Actions | -11 --------- Run | Yrd Total 484 | 484 Wait 252 | 252 Move 153 | 153 Hop . | . Pick Up 3 | 3 Fast Attach 2 | 2 Attach 4 | 4 Detach . | . Swap 1 | 1 Drop 3 | 3 Fire 64 | 64 Melee . | . Ram . | . Kick . | . Crush . | . Escape Stasis 2 | 2 Rewire . | . Trap . | . Miscellaneous . | . Route ------- -11/Scrapyard (discovered 1 exit: [*Mat]) History --------- Turn | Location | Event 1 | -11/Scrapyard | Discovered new exit (range 3) 545 | -11/Scrapyard | Crushed by falling debris 604 | -11/Scrapyard | Crushed by falling debris 605 | -11/Scrapyard | System corruption reached 10% 616 | -11/Scrapyard | Crushed by falling debris 616 | -11/Scrapyard | Core integrity fell below 50% 677 | -11/Scrapyard | Crushed by falling debris 707 | -11/Scrapyard | Crushed by falling debris 707 | -11/Scrapyard | Smashed by cave-in Last Messages --------------- 00616_ Crushed by falling debris. 00617_ Dropped Lgt. Treads. 00618_ Acquired Lgt. Treads. 00619_ Dropped Wheel. 00624_ TL8HS 00707_ Crushed by falling debris. 00707_ Mining Laser destroyed. 00707_ System corrupted by crushing effect (+1). 00707_ Ion Engine destroyed. 00707_ System corrupted by crushing effect (+3). 00707_ Lgt. Treads destroyed. 00707_ System corrupted by crushing effect (+5). Map ----- +----------------------------------------------------+ | ?????????????????????????? | | ?????????????????????????? | | ?????????????????????????? | | ?????????????????????????? | | ?????????????????????????? | | ?????????????????????????? | | ?????????????????????????? | | ?????????????????????????? | | ?????????????????????????? | | ?????????????????????????? | | ?????????????????????????? | | ?????????????????????????? | | ?????????????????????????? | | ?????????????????????????? | | ?????????????????????????? | | ?????????????????????????? | | ?????????????????????????? | | ?????????????????????????? | | ?????????????????????????? | | ?????????????????????????? | | ?????????????????????????? | | ?????????????????????????? | | ?????????????????????????? | | ?????????????????????????? | | ###??????????????????????? | | #@#??????????????????????? | | ##??????????????????????? | | # #??????????????????????? | | ##??????????????????????? | | ###??????????????????????? | | #???????????????????????? | | ##??????????????????????? | | # #??????????????????????? | | # #??????????????????????? | | ##??????????????????????? | | # #??????????????????????? | | ##??????????????????????? | | #???????????????????????? | | =#???????????????????????? | | ###??????????????????????? | | # #??????????????????????? | | #####??##############???? | | # # #### # ## # ##### | | ## ## # ###### ## # | | ?#########????########### | | ????????????????????????## | | ?????????????????????????? | | ?????????????????????????? | | ?????????????????????????? | | ?????????????????????????? | +----------------------------------------------------+ Best States ------------- Heat Dissipation 25 Energy Generation 10 Energy Capacity 250 Matter Stores 300 Matter Capacity 300 Sight Range 16 Terrain Scan Density 10 Evasion (%) 55 Recoil Reduction 2 Item Schematics ----------------- None Robot Schematics ------------------ None Fabricated ------------ Nothing Alien Tech Used ----------------- None Achievements -------------- None Challenges ------------ None Game ------ Seed ArchitectSwarmShredder Manual? 0 Play Time 00:07:40 Cumulative 136.7 hours Start 2024.04.29 @ 16:50:17 End 2024.04.29 @ 16:54:08 Sessions 0 Manual Loads 0 Difficulty Rogue Special Mode None Game No. 264 Rogue 264 Adventurer 0 Explorer 0 Win Type - Total 0 Types 0/0/0/0/0/0/0/0/0 Lore% 35 Gallery% 49 Achievement% 34 Wizard Run 0 Options --------- Layout 1 ASCII 0 Keyboard 0 Movement Numpad Keybinds 0 Fullscreen 1 Font 24/Smallcaps Map View 50x40 Zoom Use 0% Tactical HUD 1 Map Filters NONE Filters NONE Steam 1 RUN: d4cd818d-d721-4609-a6b1-6ebfba03241a